[Event "3rd Yerevan Open-A 2021"]
[Site "Yerevan"]
[Date "2021.10.17"]
[Round "4.11"]
[White "Atakhan, Abtin"]
[Black "Quparadze, Giga"]
[Result "0-1"]
[ECO "E11"]
[WhiteElo "2319"]
[BlackElo "2495"]
[Annotator "ChessBase"]
[PlyCount "110"]
[EventDate "2021.10.14"]
[EventType "swiss"]
[EventCountry "ARM"]
[SourceTitle "playchess.com"]
[Source "ChessBase"]
[SourceQuality "1"]
[TimeControl "40/5400+30:1800+30"]

1. d4 {[%emt 0:00:03]} Nf6 {[%emt 0:00:06]} 2. c4 {[%emt 0:00:14]} e6 {[%emt 0:00:05]} 3. g3 {[%emt 0:00:11]} Bb4+ {[%emt 0:00:06]} 4. Bd2 {[%emt 0:00:09]} a5 {[%emt 0:00:04]} 5. Nf3 {[%emt 0:00:10]} O-O {[%emt 0:00:10]} 6. Bg2 {[%emt 0:00:10]} d5 {[%emt 0:00:05]} 7. Qc2 {[%emt 0:00:07]} Be7 {[%emt 0:00:05]} 8. O-O {[%emt 0:00:12]} c6 {[%emt 0:00:03]} 9. Rd1 {[%emt 0:00:52]} Nbd7 {[%emt 0:00:08]} 10. Bf4 {[%emt 0:00:40]} a4 {[%emt 0:00:06]} 11. Nc3 {[%emt 0:03:40]} Qa5 {[%emt 0:00:54]} 12. Ne5 {[%emt 0:04:11]} Nxe5 {[%emt 0:00:14]} 13. dxe5 {[%emt 0:00:53]} Nd7 {[%emt 0:00:07]} 14. cxd5 {[%emt 0:10:53]} exd5 {[%emt 0:00:05]} 15. e4 {[%emt 0:01:55]} dxe4 {[%emt 0:00:06]} 16. e6 {[%emt 0:19:34]} fxe6 {[%emt 0:00:20]} 17. Nxe4 {[%emt 0:02:42]} Qf5 {[%emt 0:02:17]} 18. Qc4 {[%emt 0:03:19]} Nb6 {[%emt 0:00:37]} 19. Qd4 {[%emt 0:02:10]} Nd5 {[%emt 0:01:03]} 20. Bd6 {[%emt 0:01:08]} Bxd6 {[%emt 0:01:18]} 21. Nxd6 {[%emt 0:00:09]} Qf6 {[%emt 0:00:02]} 22. Qd2 {[%emt 0:01:05]} a3 {[%emt 0:00:37]} 23. bxa3 {[%emt 0:01:19]} Rxa3 {[%emt 0:00:19]} 24. Re1 {[%emt 0:01:57]} b5 {[%emt 0:02:11]} 25. Nxc8 {[%emt 0:06:16]} Rxc8 {[%emt 0:00:06]} 26. Rac1 {[%emt 0:03:24]} Nc3 {[%emt 0:01:49]} 27. Re3 {[%emt 0:06:04]} b4 {[%emt 0:06:33]} 28. Bh3 {[%emt 0:05:02]} Re8 {[%emt 0:00:43]} 29. Qd7 {[%emt 0:07:03]} Rf8 {[%emt 0:00:05]} 30. f4 {[%emt 0:03:24]} c5 {[%emt 0:06:50]} 31. Qxe6+ {[%emt 0:03:10]} Kh8 {[%emt 0:00:21]} 32. Qxf6 {[%emt 0:03:29]} gxf6 {[%emt 0:00:05]} 33. Rc2 {[%emt 0:00:08]} Rfa8 {[%emt 0:00:50]} 34. Be6 {[%emt 0:00:34]} Re8 {[%emt 0:01:06]} 35. f5 {[%emt 0:01:05]} Rd8 {[%emt 0:00:05]} 36. Bb3 {[%emt 0:01:23]} Ra7 {[%emt 0:00:35]} 37. Rf2 {[%emt 0:03:10]} Kg7 {[%emt 0:00:56]} 38. Kg2 {[%emt 0:03:27]} Rd4 {[%emt 0:00:06]} 39. Rf4 {[%emt 0:00:39]} Nxa2 {[%emt 0:02:02]} 40. Rxd4 {[%emt 0:00:00]} cxd4 {[%emt 0:00:00]} 41. Re4 {[%emt 0:02:00]} Nc1 {[%emt 0:00:11]} 42. Rg4+ {[%emt 0:00:41]} Kh6 {[%emt 0:00:04]} 43. Be6 {[%emt 0:01:28]} b3 {[%emt 0:01:36]} 44. Kh3 {[%emt 0:11:28]} b2 {[%emt 0:00:20]} 45. Rh4+ {[%emt 0:00:08]} Kg7 {[%emt 0:00:07]} 46. Rg4+ {[%emt 0:00:03]} Kf8 {[%emt 0:00:05]} 47. Rg8+ {[%emt 0:00:03]} Ke7 {[%emt 0:00:06]} 48. Rb8 {[%emt 0:00:02]} Nd3 {[%emt 0:00:29]} 49. Bc4 {[%emt 0:00:24]} Nf2+ {[%emt 0:00:08]} 50. Kh4 {[%emt 0:01:08]} Nd1 {[%emt 0:00:05]} 51. Be2 {[%emt 0:01:21]} Ra1 {[%emt 0:00:08]} 52. Bd3 {[%emt 0:00:05]} Rc1 {[%emt 0:00:46]} 53. Be4 {[%emt 0:00:24]} Rc3 {[%emt 0:00:22]} 54. Rb7+ {[%emt 0:06:44]} Kd6 {[%emt 0:00:09]} 55. Rb6+ {[%emt 0:00:02]} Ke5 {[%emt 1:50:04]} 0-1

[Event "3rd Yerevan Open-A 2021"]
[Site "Yerevan"]
[Date "2021.10.21"]
[Round "8.1"]
[White "Puranik, Abhimanyu"]
[Black "Sivuk, Vitaly"]
[Result "1-0"]
[ECO "A47"]
[WhiteElo "2568"]
[BlackElo "2529"]
[Annotator "ChessBase"]
[PlyCount "63"]
[EventDate "2021.10.14"]
[EventType "swiss"]
[EventCountry "ARM"]
[SourceTitle "playchess.com"]
[Source "ChessBase"]
[SourceQuality "1"]
[TimeControl "40/5400+30:1800+30"]

1. d4 {[%emt 0:00:24]} Nf6 {[%emt 0:00:31]} 2. Nf3 {[%emt 0:00:23]} e6 {[%emt 0:03:00]} 3. Bf4 {[%emt 0:00:22]} b6 {[%emt 0:00:24]} 4. e3 {[%emt 0:00:51]} Be7 {[%emt 0:02:12]} 5. h3 {[%emt 0:00:24]} O-O {[%emt 0:00:10]} 6. c3 {[%emt 0:02:52]} c5 {[%emt 0:00:13]} 7. a4 {[%emt 0:00:28]} Ba6 {[%emt 0:07:26]} 8. Bb5 {[%emt 0:04:26]} d6 {[%emt 0:00:19]} 9. O-O {[%emt 0:01:38]} cxd4 {[%emt 0:11:23]} 10. exd4 {[%emt 0:00:38]} Bxb5 {[%emt 0:02:46]} 11. axb5 {[%emt 0:00:05]} Nd5 {[%emt 0:00:10]} 12. Bh2 {[%emt 0:00:22]} Nc7 {[%emt 0:00:12]} 13. Qb3 {[%emt 0:08:05]} Nd7 {[%emt 0:08:00]} 14. c4 {[%emt 0:02:11]} Qc8 {[%emt 0:10:22]} 15. Nc3 {[%emt 0:01:27]} Qb7 {[%emt 0:06:37]} 16. Rfe1 {[%emt 0:04:00]} Rfc8 {[%emt 0:01:44]} 17. Nd2 {[%emt 0:05:46]} Bf8 {[%emt 0:00:53]} 18. Nde4 {[%emt 0:21:44]} Ne8 {[%emt 0:00:52]} 19. Ra6 {[%emt 0:03:14]} Ndf6 {[%emt 0:17:15]} 20. Nxf6+ {[%emt 0:02:28]} Nxf6 {[%emt 0:01:11]} 21. Bf4 {[%emt 0:01:42]} Nd7 {[%emt 0:04:20]} 22. Qa2 {[%emt 0:02:16]} Rc7 {[%emt 0:10:17]} 23. Ra1 {[%emt 0:01:53]} Qc8 {[%emt 0:01:08]} 24. b3 {[%emt 0:01:05]} Rb7 {[%emt 0:00:08]} 25. Qe2 {[%emt 0:05:11]} e5 {[%emt 0:03:24]} 26. Be3 {[%emt 0:00:41]} exd4 {[%emt 0:00:20]} 27. Bxd4 {[%emt 0:00:04]} Nc5 {[%emt 0:00:08]} 28. Bxc5 {[%emt 0:01:02]} dxc5 {[%emt 0:00:08]} 29. Nd5 {[%emt 0:01:05]} Qd7 {[%emt 0:00:54]} 30. Nxb6 {[%emt 0:02:05]} Qe8 {[%emt 0:05:32]} 31. Qxe8 {[%emt 0:00:28]} Rxe8 {[%emt 0:00:04]} 32. Nd5 {[%emt 0:00:04]} 1-0

[Event "3rd Yerevan Open-A 2021"]
[Site "Yerevan"]
[Date "2021.10.21"]
[Round "8.3"]
[White "Mikaelyan, Arman"]
[Black "Tahbaz, Arash"]
[Result "1-0"]
[ECO "D37"]
[WhiteElo "2487"]
[BlackElo "2459"]
[Annotator "ChessBase"]
[PlyCount "56"]
[EventDate "2021.10.14"]
[EventType "swiss"]
[EventCountry "ARM"]
[SourceTitle "playchess.com"]
[Source "ChessBase"]
[SourceQuality "1"]
[TimeControl "40/5400+30:1800+30"]

1. d4 {[%emt 0:00:06]} Nf6 {[%emt 0:00:14]} 2. c4 {[%emt 0:00:07]} e6 {[%emt 0:00:16]} 3. Nc3 {[%emt 0:00:48]} d5 {[%emt 0:00:12]} 4. Nf3 {[%emt 0:00:53]} Be7 {[%emt 0:00:07]} 5. Bf4 {[%emt 0:00:25]} O-O {[%emt 0:00:07]} 6. e3 {[%emt 0:00:27]} Nbd7 {[%emt 0:00:07]} 7. Be2 {[%emt 0:01:36]} dxc4 {[%emt 0:01:15]} 8. a4 {[%emt 0:02:18]} b6 {[%emt 0:07:48]} 9. Bxc4 {[%emt 0:05:36]} Bb7 {[%emt 0:02:35]} 10. O-O {[%emt 0:00:59]} Nh5 {[%emt 0:04:02]} 11. d5 {[%emt 0:11:36]} Nxf4 {[%emt 0:01:10]} 12. exf4 {[%emt 0:00:09]} exd5 {[%emt 0:00:17]} 13. Bxd5 {[%emt 0:00:36]} c6 {[%emt 0:04:39]} 14. Ba2 {[%emt 0:06:21]} Qc7 {[%emt 0:26:58]} 15. Re1 {[%emt 0:13:50]} Bd6 {[%emt 0:01:53]} 16. Rc1 {[%emt 0:02:04]} a6 {[%emt 0:03:28]} 17. Ng5 {[%emt 0:10:07]} Nf6 {[%emt 0:01:24]} 18. Ne6 {[%emt 0:07:15]} fxe6 {[%emt 0:06:36]} 19. Rxe6 {[%emt 0:00:05]} Kh8 {[%emt 0:02:09]} 20. Qxd6 {[%emt 0:00:16]} Qxd6 {[%emt 0:00:10]} 21. Rxd6 {[%emt 0:00:04]} Rad8 {[%emt 0:00:16]} 22. Rcd1 {[%emt 0:00:51]} Rxd6 {[%emt 0:00:13]} 23. Rxd6 {[%emt 0:00:04]} Re8 {[%emt 0:01:06]} 24. f3 {[%emt 0:00:16]} Re7 {[%emt 0:02:42]} 25. Ne4 {[%emt 0:02:42]} h6 {[%emt 0:08:30]} 26. Nxf6 {[%emt 0:00:51]} gxf6 {[%emt 0:00:05]} 27. Rxf6 {[%emt 0:00:08]} Kg7 {[%emt 0:00:38]} 28. Rd6 {[%emt 0:00:05]} b5 {[%emt 0:25:33]} 1-0

[Event "3rd Yerevan Open-A 2021"]
[Site "Yerevan"]
[Date "2021.10.21"]
[Round "8.5"]
[White "Quparadze, Giga"]
[Black "Petrosian, Tigran L."]
[Result "1-0"]
[ECO "C65"]
[WhiteElo "2495"]
[BlackElo "2562"]
[Annotator "ChessBase"]
[PlyCount "81"]
[EventDate "2021.10.14"]
[EventType "swiss"]
[EventCountry "ARM"]
[SourceTitle "playchess.com"]
[Source "ChessBase"]
[SourceQuality "1"]
[TimeControl "40/5400+30:1800+30"]

1. e4 {[%emt 0:00:03]} e5 {[%emt 0:06:26]} 2. Nf3 {[%emt 0:00:06]} Nc6 {[%emt 0:00:06]} 3. Bb5 {[%emt 0:00:04]} Nf6 {[%emt 0:00:05]} 4. Qe2 {[%emt 0:00:20]} d6 {[%emt 0:03:14]} 5. d4 {[%emt 0:00:10]} Bd7 {[%emt 0:01:57]} 6. Bxc6 {[%emt 0:01:49]} Bxc6 {[%emt 0:00:50]} 7. Nc3 {[%emt 0:02:42]} exd4 {[%emt 0:14:06]} 8. Nxd4 {[%emt 0:00:06]} Be7 {[%emt 0:00:16]} 9. e5 {[%emt 0:02:23]} dxe5 {[%emt 0:01:14]} 10. Nxc6 {[%emt 0:00:05]} bxc6 {[%emt 0:00:04]} 11. Qxe5 {[%emt 0:00:06]} O-O {[%emt 0:01:00]} 12. O-O {[%emt 0:00:04]} Re8 {[%emt 0:01:27]} 13. Qg3 {[%emt 0:03:28]} Nd5 {[%emt 0:04:13]} 14. Bd2 {[%emt 0:00:17]} Bd6 {[%emt 0:03:10]} 15. Qf3 {[%emt 0:00:09]} Nb4 {[%emt 0:01:44]} 16. Rad1 {[%emt 0:00:52]} Nxc2 {[%emt 0:01:01]} 17. Qxc6 {[%emt 0:00:06]} Nd4 {[%emt 0:00:25]} 18. Qd5 {[%emt 0:03:45]} Ne2+ {[%emt 0:28:02]} 19. Kh1 {[%emt 0:00:05]} Qh4 {[%emt 0:00:06]} 20. h3 {[%emt 0:00:08]} Rab8 {[%emt 0:05:45]} 21. Rde1 {[%emt 0:02:11]} Nxc3 {[%emt 0:01:04]} 22. Rxe8+ {[%emt 0:00:05]} Rxe8 {[%emt 0:00:04]} 23. Bxc3 {[%emt 0:00:06]} h6 {[%emt 0:01:52]} 24. Kg1 {[%emt 0:01:10]} Re2 {[%emt 0:18:05]} 25. Qa8+ {[%emt 0:00:50]} Kh7 {[%emt 0:00:03]} 26. Qxa7 {[%emt 0:01:59]} Re4 {[%emt 0:01:00]} 27. Re1 {[%emt 0:02:48]} Qf4 {[%emt 0:01:19]} 28. Rxe4 {[%emt 0:00:22]} Qxe4 {[%emt 0:00:04]} 29. g3 {[%emt 0:00:04]} f6 {[%emt 0:02:19]} 30. a4 {[%emt 0:01:27]} Qb1+ {[%emt 0:01:42]} 31. Kh2 {[%emt 0:00:09]} Qc2 {[%emt 0:01:16]} 32. Bd4 {[%emt 0:04:50]} h5 {[%emt 0:01:40]} 33. Qa5 {[%emt 0:01:37]} h4 {[%emt 0:00:47]} 34. Qh5+ {[%emt 0:00:14]} Kg8 {[%emt 0:00:04]} 35. Qxh4 {[%emt 0:00:22]} c5 {[%emt 0:00:58]} 36. Be3 {[%emt 0:00:08]} Qxb2 {[%emt 0:00:31]} 37. Qc4+ {[%emt 0:00:33]} Kh8 {[%emt 0:00:09]} 38. Bxc5 {[%emt 0:00:11]} Be5 {[%emt 0:00:37]} 39. a5 {[%emt 0:00:30]} Qb7 {[%emt 0:00:20]} 40. a6 {[%emt 0:00:00]} Qf3 {[%emt 0:00:00]} 41. a7 {[%emt 0:00:36]} 1-0

[Event "3rd Yerevan Open-A 2021"]
[Site "Yerevan"]
[Date "2021.10.21"]
[Round "8.12"]
[White "Moksh Amit Doshi"]
[Black "Hayrapetyan, Hovik"]
[Result "0-1"]
[ECO "D61"]
[WhiteElo "2379"]
[BlackElo "2500"]
[Annotator "ChessBase"]
[PlyCount "124"]
[EventDate "2021.10.14"]
[EventType "swiss"]
[EventCountry "ARM"]
[SourceTitle "playchess.com"]
[Source "ChessBase"]
[SourceQuality "1"]
[TimeControl "40/5400+30:1800+30"]

1. d4 {[%emt 0:01:08]} Nf6 {[%emt 0:00:43]} 2. c4 {[%emt 0:01:04]} e6 {[%emt 0:00:07]} 3. Nf3 {[%emt 0:00:08]} d5 {[%emt 0:03:37]} 4. Nc3 {[%emt 0:00:09]} c6 {[%emt 0:01:18]} 5. Bg5 {[%emt 0:00:08]} Be7 {[%emt 0:00:56]} 6. e3 {[%emt 0:00:15]} O-O {[%emt 0:00:05]} 7. Qc2 {[%emt 0:02:48]} Nbd7 {[%emt 0:00:28]} 8. a3 {[%emt 0:00:32]} b6 {[%emt 0:08:17]} 9. cxd5 {[%emt 0:01:44]} cxd5 {[%emt 0:06:25]} 10. Bd3 {[%emt 0:00:09]} Bb7 {[%emt 0:00:10]} 11. O-O {[%emt 0:00:10]} Rc8 {[%emt 0:01:32]} 12. Qe2 {[%emt 0:06:43]} Ne4 {[%emt 0:07:07]} 13. Bxe7 {[%emt 0:02:45]} Qxe7 {[%emt 0:01:13]} 14. Na2 {[%emt 0:07:47]} Nd6 {[%emt 0:14:24]} 15. Rac1 {[%emt 0:08:41]} Nc4 {[%emt 0:02:27]} 16. a4 {[%emt 0:03:33]} Nd6 {[%emt 0:04:21]} 17. h3 {[%emt 0:08:38]} f6 {[%emt 0:01:43]} 18. Rxc8 {[%emt 0:04:04]} Rxc8 {[%emt 0:00:21]} 19. Rc1 {[%emt 0:01:52]} Rxc1+ {[%emt 0:00:29]} 20. Nxc1 {[%emt 0:00:07]} Nb8 {[%emt 0:01:47]} 21. Qc2 {[%emt 0:02:48]} g6 {[%emt 0:03:52]} 22. b4 {[%emt 0:08:03]} Nc6 {[%emt 0:01:35]} 23. Qb3 {[%emt 0:02:57]} Kf7 {[%emt 0:03:11]} 24. h4 {[%emt 0:02:17]} Qc7 {[%emt 0:03:36]} 25. Qc3 {[%emt 0:09:13]} Qc8 {[%emt 0:00:33]} 26. Ne2 {[%emt 0:00:31]} Ne7 {[%emt 0:01:11]} 27. Qa3 {[%emt 0:01:34]} h6 {[%emt 0:02:27]} 28. Bb1 {[%emt 0:03:24]} g5 {[%emt 0:04:36]} 29. hxg5 {[%emt 0:00:38]} hxg5 {[%emt 0:00:06]} 30. Qd3 {[%emt 0:04:36]} Ne4 {[%emt 0:01:38]} 31. Nd2 {[%emt 0:01:56]} Nf5 {[%emt 0:04:22]} 32. f3 {[%emt 0:03:55]} Nxd2 {[%emt 0:01:24]} 33. Qxd2 {[%emt 0:00:09]} Qc4 {[%emt 0:09:19]} 34. Ba2 {[%emt 0:04:28]} Qc6 {[%emt 0:00:32]} 35. b5 {[%emt 0:00:59]} Qd6 {[%emt 0:00:17]} 36. Bb1 {[%emt 0:00:52]} Qa3 {[%emt 0:04:38]} 37. Bxf5 {[%emt 0:03:21]} exf5 {[%emt 0:00:03]} 38. Nc3 {[%emt 0:02:34]} Qb3 {[%emt 0:01:53]} 39. Qd3 {[%emt 0:01:18]} Bc8 {[%emt 0:00:46]} 40. Kf2 {[%emt 0:00:00]} Be6 {[%emt 0:00:00]} 41. Qd2 {[%emt 0:05:43]} Qc4 {[%emt 0:02:34]} 42. Ke1 {[%emt 0:02:27]} Kg7 {[%emt 0:04:17]} 43. Kd1 {[%emt 0:01:29]} Qf1+ {[%emt 0:01:26]} 44. Kc2 {[%emt 0:00:05]} Kg6 {[%emt 0:00:35]} 45. Qe2 {[%emt 0:01:09]} Qg1 {[%emt 0:05:55]} 46. Kd2 {[%emt 0:02:15]} Kg7 {[%emt 0:04:24]} 47. Nd1 {[%emt 0:02:14]} Bf7 {[%emt 0:01:25]} 48. Qf2 {[%emt 0:00:54]} Qh2 {[%emt 0:00:25]} 49. Nc3 {[%emt 0:03:19]} Kh6 {[%emt 0:03:42]} 50. Ne2 {[%emt 0:01:21]} Qd6 {[%emt 0:00:18]} 51. Nc3 {[%emt 0:01:30]} Qb4 {[%emt 0:00:08]} 52. Kc2 {[%emt 0:00:22]} f4 {[%emt 0:02:04]} 53. Qd2 {[%emt 0:03:51]} Bg6+ {[%emt 0:00:18]} 54. e4 {[%emt 0:02:32]} dxe4 {[%emt 0:04:18]} 55. fxe4 {[%emt 0:00:06]} Qd6 {[%emt 0:00:40]} 56. Qd3 {[%emt 0:01:14]} g4 {[%emt 0:01:08]} 57. Kd2 {[%emt 0:00:59]} Kg5 {[%emt 0:01:55]} 58. Ke2 {[%emt 0:01:38]} g3 {[%emt 0:01:17]} 59. d5 {[%emt 0:02:33]} Qc5 {[%emt 0:01:34]} 60. d6 {[%emt 0:00:40]} f3+ {[%emt 0:03:32]} 61. Kd2 {[%emt 0:01:32]} Qf2+ {[%emt 0:00:08]} 62. Kc1 {[%emt 0:00:26]} fxg2 {[%emt 0:00:17]} 0-1